bitfinex/quotes_ETHUSD_20251031
["timestamp","ask_amount","ask_price","bid_price","bid_amount"]
[1761934784351,0.001,3824.1,3824.0,2.61506276]
[1761934784551,0.41115806,3824.1,3824.0,2.61506276]
[1761934785524,0.001,3824.1,3823.5,0.4225]
[1761934785727,0.001,3824.1,3823.8,1.39968]
[1761934785928,0.001,3824.1,3823.6,4.01494928]
[1761934786251,0.001,3824.1,3823.7,2.61526793]
[1761934786558,0.001,3824.1,3824.0,2.61506276]
[1761934787136,0.001,3824.1,3823.9,2.6150817]
[1761934787460,0.001,3824.1,3823.9,3.13811548]
[1761934787653,0.001,3824.1,3824.0,2.61506276]
[1761934788437,0.001,3824.1,3824.0,2.64121338]
[1761934788838,0.001,3824.1,3824.0,0.02615062]
[1761934789362,0.001,3824.1,3823.9,2.61510523]
[1761934789555,0.001,3824.1,3824.0,2.64121338]
[1761934789864,0.001,3824.1,3824.0,3.06371338]
[1761934790262,0.001,3824.1,3824.0,2.64121338]
[1761934791574,0.001,3824.1,3824.0,3.58935414]
[1761934791755,0.001,3824.1,3824.0,5.79088752]
[1761934792062,0.001,3824.1,3824.0,5.92128752]
[1761934793764,0.001,3824.1,3824.0,5.49878752]
[1761934793931,0.001,3824.1,3824.0,5.92128752]
[1761934794649,0.001,3824.1,3824.0,5.49878752]
[1761934795564,0.001,3824.1,3824.0,5.92128752]
[1761934796564,0.001,3824.1,3824.0,5.49878752]
[1761934799139,0.001,3824.1,3824.0,5.92128752]
[1761934799881,0.001,3824.1,3824.0,5.07628752]
[1761934800082,0.001,3824.1,3824.0,5.49878752]
[1761934800553,0.001,3824.1,3824.0,2.05572076]
[1761934800743,0.001,3824.1,3824.0,4.14514276]
[1761934800944,0.001,3824.1,3824.0,0.1304]
[1761934801143,0.9644,3824.1,3823.5,2.61540473]
[1761934801376,0.9644,3824.1,3824.0,3.03756276]
[1761934801377,0.001,3824.1,3824.0,3.03756276]
[1761934801575,0.001,3824.1,3824.0,3.36746966]
[1761934801778,0.001,3824.1,3824.0,5.17265366]
[1761934801978,0.001,3824.1,3824.0,5.59515366]
[1761934802180,0.001,3824.1,3824.0,5.56900304]
[1761934803649,0.001,3824.1,3824.0,5.14650304]
[1761934804153,0.001,3824.1,3824.0,5.17265366]
[1761934804563,0.001,3824.1,3824.0,5.14650304]
[1761934805062,0.001,3824.1,3824.0,5.59515366]
[1761934805284,0.001,3824.1,3824.0,5.56900304]
[1761934806198,0.001,3824.1,3824.0,12.04262219]
[1761934806703,0.001,3824.1,3824.0,5.14650304]
[1761934806897,0.001,3824.1,3824.0,5.56900304]
[1761934808029,0.001,3824.1,3824.0,12.04262219]
[1761934809673,0.001,3824.1,3824.0,5.57100304]
[1761934811179,0.001,3824.1,3824.0,5.70140304]
[1761934818922,0.001,3824.6,3824.5,3.02022487]
[1761934819081,0.001,3824.6,3824.5,11.90567395]
[1761934819311,0.001,3824.6,3824.5,16.18202675]
[1761934819487,0.01,3825.7,3825.6,3.01947305]
[1761934819813,0.01,3825.7,3825.6,4.84165305]
[1761934820206,0.01,3825.7,3825.6,5.29029274]
[1761934820507,0.01,3825.7,3825.6,6.27944933]
[1761934821212,0.01,3825.7,3825.6,6.70194933]
[1761934821505,0.01,3825.7,3825.6,12.87146739]
[1761934826894,0.01,3826.7,3826.6,2.61328594]
[1761934827220,0.01,3826.7,3826.6,3.01878994]
[1761934827431,0.9156,3826.7,3826.6,3.01878994]
[1761934828521,0.9156,3826.7,3825.9,0.1375]
[1761934828819,0.4537,3826.6,3826.5,4.01303424]
[1761934829183,0.9056,3826.6,3826.5,4.01303424]
[1761934830385,0.011,3826.7,3826.6,3.01878994]
[1761934830615,0.011,3826.7,3826.6,3.44128994]
[1761934830829,0.011,3826.7,3826.6,5.12030773]
[1761934831346,0.001,3827.1,3827.0,3.0185168]
[1761934831644,0.001,3827.1,3827.0,11.45884498]
[1761934831827,0.001,3827.1,3827.0,11.43271486]
[1761934832037,0.001,3827.1,3827.0,13.14086768]
[1761934832348,0.001,3827.6,3827.5,2.61267145]
[1761934832677,0.001,3827.6,3827.5,9.62718951]
[1761934832980,0.001,3828.0,3827.9,4.41758244]
[1761934833257,0.4637,3828.7,3828.3,3.01762948]
[1761934833425,0.4637,3828.7,3828.3,3.04375073]
[1761934834255,0.01,3828.7,3828.3,3.04375073]
[1761934834604,0.01,3828.7,3828.3,3.46625073]
[1761934835040,0.1564,3829.0,3828.9,2.61171615]
[1761934835244,0.6101,3829.0,3828.7,2.61185258]
[1761934835428,0.6101,3829.0,3828.6,1.805184]
[1761934835626,0.4519,3828.7,3828.6,1.39968]
[1761934835833,0.4519,3828.7,3828.6,2.6119208]
[1761934836010,0.9056,3828.7,3828.6,2.6119208]
[1761934836949,0.9056,3828.7,3828.5,2.61198348]
[1761934837243,0.1564,3829.0,3828.0,6.59201806]
[1761934837244,0.905,3828.6,3828.0,6.59201806]
[1761934837446,0.4537,3828.6,3828.1,1.39968]
[1761934837608,0.4537,3828.5,3828.2,1.39968]
[1761934837813,0.4537,3828.5,3827.5,0.10466833]
[1761934838067,0.6395,3827.6,3827.5,2.6126536]
[1761934838346,0.6395,3827.6,3827.5,4.0123336]
[1761934838648,0.6395,3827.6,3827.5,2.6126536]
[1761934838819,0.4519,3827.6,3827.3,0.405504]
[1761934839020,0.4519,3827.4,3827.3,3.01831198]
[1761934840032,0.4537,3827.8,3827.3,0.405504]
[1761934840238,0.4537,3827.8,3827.5,2.61261178]
[1761934840438,0.4537,3827.8,3827.4,1.39968]
[1761934840949,0.4519,3827.5,3827.1,0.4637]
[1761934841246,0.4519,3827.2,3827.1,1.40968]
[1761934841550,0.4537,3827.7,3827.6,2.61260319]
[1761934842068,0.9056,3827.7,3827.4,2.61273453]
[1761934842274,0.4537,3827.7,3827.4,2.61273453]
[1761934842556,0.4519,3827.5,3827.4,2.61273453]
[1761934842916,0.9056,3827.5,3827.4,2.61273453]
[1761934843448,0.4519,3827.5,3827.4,2.61273453]
[1761934843655,0.9056,3827.5,3827.4,2.61273453]
[1761934844968,0.9056,3827.5,3827.2,0.1304]
[1761934845255,0.4519,3827.3,3827.1,1.40968]
[1761934845441,0.4519,3827.2,3827.1,0.01]
[1761934845752,0.4519,3827.2,3827.1,4.02262452]
[1761934845954,0.9056,3827.2,3827.1,4.02262452]
[1761934846544,0.9056,3827.2,3827.1,1.40968]
[1761934846947,0.9056,3827.2,3827.1,0.01]
[1761934847645,0.938,3827.2,3827.1,0.01]
[1761934848445,0.938,3827.2,3827.1,0.012]
[1761934854881,0.1304,3827.6,3827.5,2.61267145]
[1761934855067,0.4861,3828.2,3827.5,2.61267145]
[1761934855068,0.4861,3828.2,3827.7,2.61248311]
[1761934855374,0.1304,3827.9,3827.8,0.02612466]
[1761934855573,0.1304,3827.9,3827.7,2.61251101]
[1761934855776,0.4723,3827.8,3827.3,0.94723293]
[1761934856084,0.4723,3827.8,3827.6,2.61259664]
[1761934856266,0.4723,3827.8,3827.7,2.61253494]
[1761934857139,0.4723,3827.8,3827.3,0.94723293]
[1761934857380,0.4723,3827.8,3827.6,2.61259261]
[1761934857550,0.4723,3827.8,3827.7,2.61253494]
[1761934857876,0.4723,3827.8,3827.6,2.61258632]
[1761934858080,0.9584,3827.8,3827.2,0.405504]
[1761934858256,0.4861,3827.8,3827.3,2.61280798]
[1761934858447,0.4723,3827.4,3827.3,2.61280798]
[1761934858648,0.4723,3827.4,3827.3,5.3890226]
[1761934859384,0.4723,3827.4,3827.3,2.77621462]
[1761934859549,0.4723,3827.4,3827.3,4.01248798]
[1761934860287,0.4723,3827.4,3827.3,1.39968]
[1761934860455,0.9584,3827.4,3827.3,4.01248798]
[1761934860688,0.4723,3827.4,3827.3,4.01248798]
[1761934860895,0.4723,3827.4,3827.3,1.39968]
[1761934861396,0.9584,3827.4,3827.1,2.62491913]
[1761934861704,0.4723,3827.2,3827.1,2.62491913]
[1761934862089,0.9584,3827.2,3827.1,2.62491913]
[1761934862291,0.4723,3827.2,3827.1,2.62491913]
[1761934862496,0.6165,3827.6,3827.4,2.61272216]
[1761934862714,0.4861,3827.5,3827.3,2.61278684]
[1761934863210,0.4723,3827.4,3827.3,2.61278684]
[1761934863418,0.1304,3827.6,3827.4,2.61273971]
[1761934863618,0.60778465,3827.9,3827.8,2.61246669]
[1761934863619,0.40978465,3827.9,3827.8,2.61246669]
[1761934863817,0.54018465,3827.9,3827.8,3.07396669]
[1761934863991,0.1304,3827.9,3827.8,3.07396669]
[1761934864581,0.4861,3828.4,3828.1,2.61226195]
[1761934864817,0.40973167,3828.7,3828.1,2.61226195]
[1761934864818,0.1304,3828.3,3828.2,0.02612193]
[1761934864987,0.1304,3828.3,3828.2,2.63824856]
[1761934865384,0.40973167,3828.7,3828.2,1.01267298]
[1761934865609,0.1304,3828.8,3828.6,0.4615]
[1761934865815,0.4723,3828.7,3828.6,2.6119208]
[1761934865988,0.1304,3828.8,3828.7,2.61185258]
[1761934866385,0.001,3829.0,3828.9,2.61171615]
[1761934866927,0.001,3829.0,3828.9,3.47872015]
[1761934867133,0.001,3829.0,3828.9,4.67967742]
[1761934867295,0.001,3829.0,3828.9,5.61785742]
[1761934867494,0.001,3829.0,3828.9,5.94895742]
[1761934867884,0.001,3829.0,3828.9,5.48745742]
[1761934868320,0.001,3829.0,3828.9,5.94895742]
[1761934872840,0.001,3829.1,3829.0,4.41683194]
[1761934873039,0.001,3829.1,3829.0,13.25573066]
[1761934873338,0.001,3829.1,3829.0,13.22961419]
[1761934873902,0.001,3829.8,3829.3,4.01112334]
[1761934874104,0.001,3829.8,3829.3,4.47262334]
[1761934874328,0.001,3829.8,3829.3,4.49873777]
[1761934874510,0.001,3829.8,3829.3,6.75020622]
[1761934875002,0.001,3829.8,3829.6,2.61123877]
[1761934875302,0.001,3829.8,3829.6,11.49605321]
[1761934875509,0.001,3829.8,3829.6,11.93144083]
[1761934875841,0.001,3829.8,3829.6,12.03605715]
[1761934875999,0.001,3829.8,3829.6,13.94354758]
[1761934877007,0.001,3829.8,3829.6,13.48204758]
[1761934877495,0.001,3829.8,3829.6,13.61244758]
[1761934877692,0.5001,3829.7,3829.6,6.15342552]
[1761934878005,0.01,3829.7,3829.6,4.24593509]
[1761934878205,0.01,3829.7,3829.6,5.13905147]
[1761934878538,0.01,3829.7,3829.6,4.73354747]
[1761934878739,0.01,3829.7,3829.6,5.00865147]
[1761934878941,0.01,3829.7,3829.6,5.57443909]
[1761934879157,0.01,3829.7,3829.6,6.5907169]
[1761934880042,0.01,3829.7,3829.6,7.0522169]
[1761934880244,0.01,3829.7,3829.6,6.5907169]
[1761934882277,0.01,3829.7,3829.6,7.0522169]
[1761934882580,0.01,3829.7,3829.6,6.5907169]
[1761934882749,0.4683,3829.7,3829.6,4.65143909]
[1761934883132,0.01,3829.7,3829.6,4.65143909]
[1761934883349,0.01,3829.7,3829.6,5.11293909]
[1761934883889,0.011,3829.7,3829.6,5.11293909]
[1761934885699,0.011,3829.7,3829.6,4.65143909]
[1761934885913,0.011,3829.7,3829.6,6.87201686]
[1761934888675,0.4693,3829.7,3829.6,6.41051686]
[1761934888929,0.967,3829.7,3828.7,6.44801773]
[1761934889084,0.3477,3829.5,3829.4,2.61137515]
[1761934889920,0.011,3829.7,3829.6,2.61123877]
[1761934890281,0.4693,3829.7,3829.6,2.61123877]
[1761934890688,0.967,3829.7,3829.6,2.61123877]
[1761934892134,0.011,3829.7,3829.6,2.63735115]
[1761934892297,0.011,3829.7,3829.6,4.68706937]
[1761934892492,0.011,3829.7,3829.6,6.21714937]
[1761934892696,0.011,3829.7,3829.6,5.72953699]
[1761934892892,0.4693,3829.7,3829.6,5.72953699]
[1761934893098,0.967,3829.7,3829.6,4.54682277]
[1761934893417,0.011,3829.7,3829.6,5.03443515]
[1761934893591,0.4693,3829.7,3829.6,4.54682277]
[1761934893786,0.011,3829.7,3829.6,4.57293515]
[1761934894032,0.011,3829.7,3829.6,5.93616777]
[1761934894236,0.4693,3829.7,3829.6,5.91005539]
[1761934894438,0.4693,3829.7,3829.6,4.54682277]
[1761934894875,0.4693,3829.7,3829.6,1.935584]
[1761934894876,0.967,3829.7,3829.6,1.935584]
[1761934895009,0.967,3829.7,3828.1,2.74971049]
[1761934895322,0.3477,3829.4,3828.8,1.39968]
[1761934895527,0.3477,3829.4,3828.8,4.01145855]
[1761934895727,0.6457,3828.9,3828.8,2.61178437]
[1761934895915,0.6457,3828.9,3828.1,0.1375]
[1761934896116,0.6457,3828.9,3828.8,2.61178437]
[1761934896317,0.6457,3828.9,3828.7,2.61178794]
[1761934896512,0.4977,3828.8,3827.8,6.45001773]
[1761934896748,0.011,3829.7,3829.4,2.61135507]
[1761934896947,0.4977,3829.5,3829.4,2.61137515]
[1761934897161,0.956,3829.5,3829.4,2.61137515]
[1761934897669,0.011,3829.7,3829.6,2.61123877]
[1761934897824,0.967,3829.7,3829.6,2.61123877]
[1761934898023,0.967,3829.7,3829.5,2.61124048]
[1761934898216,0.967,3829.7,3829.4,2.61137515]
[1761934898217,0.3581,3829.5,3829.4,2.61137515]
[1761934898417,0.011,3829.7,3829.6,2.61123877]
[1761934898860,0.967,3829.7,3829.6,2.61123877]
[1761934899228,0.4693,3829.7,3829.6,2.61123877]
[1761934899431,0.011,3829.7,3829.6,3.54161475]
[1761934899622,0.011,3829.7,3829.6,2.61123877]
[1761934899623,0.967,3829.7,3829.6,2.61123877]
[1761934900529,0.967,3829.7,3829.5,2.63735761]
[1761934900732,0.4583,3829.5,3829.4,1.39968]
[1761934900933,0.4583,3829.5,3829.3,2.61137569]
[1761934901266,0.011,3829.7,3829.4,2.61137515]
[1761934901462,0.011,3829.7,3829.4,2.61337515]
[1761934901758,0.4583,3829.5,3829.4,0.002]
[1761934902201,0.956,3829.5,3829.4,0.002]
[1761934902500,0.956,3829.5,3829.4,2.61337515]
[1761934903051,0.956,3829.5,3829.4,0.002]
[1761934906255,1.11175469,3829.5,3829.4,0.002]
[1761934906497,0.956,3829.5,3829.4,0.002]
[1761934908658,0.9821654,3829.5,3829.4,0.002]
[1761934912401,0.956,3829.5,3829.4,0.002]
[1761934912614,1.36562819,3829.5,3829.4,0.002]
[1761934915308,0.86792819,3829.5,3829.4,0.002]
[1761934915670,0.4583,3829.5,3829.4,0.002]
[1761934916008,0.922,3829.5,3829.4,0.002]
[1761934918362,0.922,3829.5,3829.4,2.61337515]
[1761934918688,0.922,3829.5,3829.4,0.002]
[1761934919385,0.923,3829.5,3829.4,0.002]
[1761934919957,0.4593,3829.5,3829.4,2.61337515]
[1761934920208,0.001,3829.5,3829.4,2.61337515]
[1761934920421,0.001,3829.5,3829.4,3.07487515]
[1761934920555,0.001,3829.5,3829.4,0.52448304]
[1761934920758,0.001,3829.5,3829.4,0.002]
[1761934920759,0.9484,3829.5,3829.4,0.002]
[1761934922977,0.001,3829.5,3829.4,0.002]
[1761934923287,0.1314,3829.5,3829.4,0.4635]
[1761934923604,0.1314,3829.5,3829.4,3.48037915]
[1761934923761,0.1314,3829.5,3829.4,3.5064929]
[1761934923970,0.1314,3829.5,3829.4,3.48037915]
[1761934924164,0.1314,3829.5,3829.4,0.869004]
[1761934924362,0.1314,3829.5,3829.4,3.48037915]
[1761934924886,0.1314,3829.5,3829.4,0.869004]
[1761934925269,0.6151,3829.5,3829.4,0.407504]
[1761934925467,1.0788,3829.5,3829.4,0.407504]
[1761934925683,1.0788,3829.5,3829.4,0.002]
[1761934926002,1.22883603,3829.5,3829.4,0.002]
[1761934926178,0.6151,3829.5,3829.4,0.002]
[1761934926701,0.9745654,3829.5,3829.4,0.002]
[1761934928205,0.5108654,3829.5,3829.4,0.002]
[1761934928379,0.9745654,3829.5,3829.4,0.002]
[1761934928585,0.4847,3829.5,3829.4,0.002]
[1761934928786,0.001,3829.5,3829.4,3.5064929]
[1761934929212,0.001,3829.5,3829.4,4.13832947]
[1761934929898,0.001,3829.5,3829.4,4.59982947]
[1761934930098,0.001,3829.5,3829.4,3.48037915]
[1761934931020,0.001,3829.5,3829.4,3.5064929]
[1761934931405,0.001,3829.5,3829.4,3.48037915]
[1761934932382,0.001,3829.5,3829.4,3.9679929]
[1761934932819,0.001,3829.5,3829.4,4.62594155]
[1761934932996,0.001,3829.5,3829.4,4.1383278]
[1761934933508,0.001,3829.5,3829.4,4.5998278]
[1761934933698,0.001,3829.5,3829.4,4.62594155]
[1761934934217,0.001,3829.5,3829.4,4.1383278]
[1761934935729,0.001,3829.5,3829.4,4.62594155]
[1761934936716,0.001,3829.5,3829.4,6.15602155]
[1761934936919,0.001,3829.5,3829.4,5.6684078]
[1761934937557,0.001,3829.5,3829.4,6.1299078]
[1761934939977,0.001,3829.5,3829.4,5.9995078]
[1761934940259,0.011,3829.7,3829.6,4.41642277]
[1761934940454,0.011,3829.7,3829.6,11.35205288]
[1761934940743,0.011,3829.7,3829.6,11.7874405]
[1761934942035,0.001,3829.8,3829.7,4.41635458]
[1761934942368,0.001,3829.8,3829.7,5.33935458]
[1761934942535,0.001,3829.8,3829.7,7.20291919]
[1761934943123,0.001,3829.8,3829.7,5.87441519]
[1761934943449,0.001,3829.8,3829.7,4.01085058]
[1761934943661,0.001,3829.8,3829.7,4.41635458]
[1761934943861,0.001,3829.8,3829.7,4.87715458]
[1761934944261,0.001,3829.8,3829.7,4.90326628]
[1761934944461,0.001,3829.8,3829.7,5.36476628]
[1761934944633,0.001,3829.8,3829.7,6.86736687]
[1761934945342,0.001,3829.9,3829.8,4.4162864]
[1761934945666,0.001,3829.9,3829.8,5.3385864]
[1761934946363,0.001,3829.9,3829.8,4.8770864]
[1761934946536,0.001,3829.9,3829.8,6.78359687]
[1761934948734,0.6499,3829.9,3829.8,5.91729287]
[1761934948965,1.1,3829.9,3829.8,2.6111024]
[1761934949146,1.1,3829.9,3829.8,3.0166064]
[1761934949558,1.1,3829.9,3829.8,2.6111024]
[1761934949867,1.1,3829.9,3829.4,0.002]
[1761934949868,1.1,3829.9,3829.5,2.61130695]
[1761934950031,0.4497,3829.8,3829.4,2.61335947]
[1761934950230,0.4497,3829.8,3829.4,1.40168]
[1761934950231,0.4574,3829.5,3829.4,1.40168]
[1761934950565,0.4574,3829.5,3829.4,4.01305515]
[1761934950766,0.1304,3829.6,3829.5,1.39968]
[1761934950966,0.1314,3829.9,3829.8,3.0166064]
[1761934951185,0.1314,3829.9,3829.8,0.405504]
[1761934951386,1.2304,3829.9,3829.8,3.0166064]
[1761934951590,0.5888,3829.9,3829.8,3.0166064]
[1761934951764,0.001,3829.9,3829.8,3.0166064]
[1761934951960,0.001,3829.9,3829.8,3.4774064]
[1761934952572,0.001,3829.9,3829.8,4.4162864]
[1761934953171,0.001,3829.9,3829.8,5.61898667]
[1761934953363,0.001,3829.9,3829.8,5.59287565]
[1761934953794,0.001,3829.9,3829.8,2.98177325]
[1761934953996,1.1,3829.9,3829.8,0.405504]
[1761934954395,1.1,3829.9,3829.4,0.002]
[1761934954580,0.402,3829.5,3829.4,4.01305262]
[1761934954973,0.402,3829.5,3829.4,4.41855662]
[1761934955297,0.8521,3829.5,3829.4,4.41855662]
[1761934956291,0.402,3829.5,3829.4,4.41855662]
[1761934956809,0.001,3829.7,3829.6,4.41642277]
[1761934957172,0.9085,3829.7,3829.6,4.41642277]
[1761934957370,0.9085,3829.7,3829.6,6.68970584]
[1761934957591,0.9085,3829.7,3829.6,9.30094461]
[1761934958093,0.4584,3829.7,3829.6,9.30094461]
[1761934958294,0.001,3829.7,3829.6,9.30094461]
[1761934960465,0.001,3829.7,3829.6,10.49237106]
[1761934960967,0.001,3829.7,3829.6,10.95317106]
[1761934961372,0.001,3829.7,3829.6,10.49237106]
[1761934962191,0.001,3829.7,3829.6,10.95317106]
[1761934963407,0.001,3829.7,3829.6,11.08357106]
[1761934964113,0.001,3829.7,3829.6,10.62277106]
[1761934965182,0.001,3829.7,3829.6,11.08357106]
[1761934965382,0.001,3829.7,3829.6,11.54507106]
[1761934965623,0.001,3829.7,3829.6,11.08357106]
[1761934967413,0.001,3829.7,3829.6,11.54507106]
[1761934967911,0.001,3829.7,3829.6,11.08357106]
[1761934969108,0.001,3829.7,3829.6,11.54507106]
[1761934969881,0.001,3829.7,3829.6,11.08357106]
[1761934973424,0.001,3829.7,3829.6,11.54507106]
[1761934974137,0.001,3829.7,3829.6,11.08357106]
[1761934976709,0.001,3829.7,3829.6,11.54507106]
[1761934977610,0.001,3829.7,3829.6,11.08357106]
[1761934980654,1e-08,3830.1,3829.7,4.41635458]
[1761934980801,0.001,3830.9,3830.6,3.01606109]
[1761934980997,0.001,3830.9,3830.6,9.7855685]
[1761934981210,0.01,3830.7,3830.6,9.75946293]
[1761934981866,0.001,3830.9,3830.8,3.01592479]
[1761934982160,0.001,3830.9,3830.8,6.38221576]
[1761934982331,0.001,3831.5,3831.4,3.015516]
[1761934982518,0.001,3831.5,3831.4,7.92613796]
[1761934982718,0.4737,3831.5,3831.4,7.90003784]
[1761934982917,0.001,3831.5,3831.4,8.35923784]
[1761934983114,0.001,3831.5,3831.4,10.94022716]
[1761934984243,0.01,3831.7,3831.6,4.41505976]
[1761934984448,0.001,3832.3,3832.2,4.41465114]
[1761934984781,0.001,3832.3,3832.2,14.64289482]
[1761934984918,0.4737,3833.2,3832.6,9.29890064]
[1761934985114,0.4737,3833.2,3832.6,9.75810064]
[1761934985319,0.4827,3832.7,3832.6,4.4143788]
[1761934987763,0.9564,3832.7,3832.6,4.4143788]
[1761934987959,0.4827,3832.7,3832.6,4.4143788]
[1761934988327,0.9564,3832.7,3832.6,4.4143788]
[1761934990146,0.9574,3832.7,3832.6,4.4143788]
[1761934990741,0.9574,3832.7,3832.6,4.5447788]
[1761934991342,0.9574,3832.7,3832.6,5.26018484]
[1761934992144,0.4837,3832.7,3832.6,5.26018484]
[1761934994374,0.011,3832.7,3832.6,5.26018484]
[1761934995279,0.011,3832.7,3832.6,5.71938484]
[1761934999077,0.4946,3832.7,3832.6,5.26018484]
[1761934999283,0.4946,3832.7,3832.6,4.5447788]
[1761935000673,0.968,3832.7,3832.6,0.405504]
[1761935001964,0.968,3832.7,3831.8,1.39968]
[1761935001965,0.968,3832.7,3831.4,2.58098932]
[1761935002195,0.4713,3832.4,3832.0,6.56865529]
[1761935002369,0.1414,3832.7,3832.6,1.805184]
[1761935002567,1.0829,3832.7,3832.6,1.805184]
[1761935003293,1.17748835,3832.7,3832.6,3.0146988]
[1761935003878,0.10558835,3832.7,3832.6,3.04079074]
[1761935004084,0.10558835,3832.7,3832.6,5.59704534]
[1761935004403,0.10558835,3832.7,3832.6,5.5709534]
[1761935005798,0.59558835,3832.7,3832.6,5.1193534]
[1761935005985,0.59558835,3832.7,3832.6,4.4143788]
[1761935006184,1.04708835,3832.7,3832.6,4.4143788]
[1761935006497,0.59558835,3832.7,3832.6,4.4143788]
[1761935006872,0.10558835,3832.7,3832.6,4.4143788]
[1761935007184,0.59558835,3832.7,3832.6,4.4143788]
[1761935007966,0.10558835,3832.7,3832.6,5.58158421]
[1761935008288,0.59558835,3832.7,3832.6,5.12998421]
[1761935012204,0.10558835,3832.7,3832.6,5.12998421]
[1761935012412,0.10558835,3832.7,3832.6,5.58158421]
[1761935013090,0.10558835,3832.7,3832.6,6.04308421]
[1761935013289,0.10558835,3832.7,3832.6,6.17348421]
[1761935014228,0.10558835,3832.7,3832.6,6.27907256]
[1761935014911,0.001,3833.1,3833.0,4.41410651]
[1761935015108,0.001,3833.1,3833.0,5.56801746]
[1761935015431,0.001,3833.1,3833.0,6.15991746]
[1761935019731,0.001,3833.1,3833.0,6.02951746]
[1761935021824,0.001,3833.1,3833.0,5.56801746]
[1761935022005,0.491,3833.1,3833.0,3.31123346]
[1761935022222,0.001,3833.1,3833.0,3.31123346]
[1761935022421,0.491,3833.1,3833.0,3.31123346]
[1761935022655,0.491,3833.1,3833.0,3.71673746]
[1761935023059,0.001,3833.1,3833.0,3.71673746]
[1761935023476,0.491,3833.1,3833.0,3.71673746]
[1761935025147,0.001,3833.1,3833.0,5.11641746]
[1761935025654,0.001,3833.1,3833.0,5.56801746]
[1761935025829,0.001,3833.1,3833.0,5.11641746]
[1761935026029,0.491,3833.1,3833.0,5.11641746]
[1761935026232,0.9905,3833.1,3833.0,4.41410651]
[1761935028471,0.9905,3833.1,3833.0,0.405504]
[1761935028677,0.9905,3833.1,3832.6,0.002]
[1761935028971,0.555,3832.7,3832.6,2.6111948]
[1761935029331,1.0545,3832.7,3832.6,3.0166988]
[1761935029561,1.0545,3832.7,3832.6,0.002]
[1761935030229,1.0545,3832.7,3832.6,3.0166988]
[1761935030374,1.0545,3832.7,3832.6,0.407504]
[1761935033384,1.0545,3832.7,3832.6,3.0166988]
[1761935036422,1.0545,3832.7,3832.6,0.407504]
[1761935037151,0.555,3832.7,3832.6,3.0166988]
[1761935037457,0.3552,3832.7,3832.6,4.19104031]
[1761935037746,0.1304,3833.0,3832.9,3.01449458]
[1761935038121,0.5963,3833.0,3832.9,0.405504]
[1761935038446,1.0958,3833.0,3832.9,0.405504]
[1761935038955,1.0958,3833.0,3832.9,3.01449458]
[1761935041331,0.1304,3833.0,3832.9,3.01449458]
[1761935041535,0.1314,3833.0,3832.9,4.63966246]
[1761935041735,0.001,3833.0,3832.9,4.63966246]
[1761935042455,0.001,3833.9,3833.8,3.01388211]
[1761935042616,0.1998,3834.9,3833.9,0.405504]
[1761935042816,0.1998,3834.9,3834.6,8.99832633]
[1761935043011,0.5095,3834.7,3834.6,8.99832633]
[1761935043351,0.01,3834.7,3834.6,3.01333793]
[1761935043652,0.01,3834.7,3834.6,3.50091626]
[1761935044150,0.01,3834.7,3834.6,3.03941626]
[1761935044554,0.9754,3834.7,3834.6,3.01333793]
[1761935045052,0.4759,3834.7,3834.6,3.01333793]
[1761935045259,0.01,3834.7,3834.6,3.01333793]
[1761935045464,0.01,3834.7,3834.6,3.57546694]
[1761935045766,0.01,3834.7,3834.6,4.03696694]
[1761935046915,0.01,3834.7,3834.6,3.57546694]
[1761935047113,0.4759,3834.7,3834.6,3.57546694]
[1761935047345,0.9754,3834.7,3834.6,3.57546694]
[1761935047718,0.9754,3834.7,3834.4,0.1296]
[1761935047918,0.3219,3834.5,3834.0,0.1998]
[1761935048132,0.4645,3834.1,3834.0,2.80803564]
[1761935048332,0.4645,3834.1,3834.0,3.01373964]
[1761935048537,0.4645,3834.1,3834.0,3.18348221]
[1761935049046,0.4645,3834.1,3834.0,3.58898621]
[1761935049220,0.4995,3834.5,3834.4,3.01347395]
[1761935049420,0.4995,3834.5,3834.4,0.405504]
[1761935049648,0.9654,3834.5,3834.4,0.405504]
[1761935049815,0.9654,3834.5,3834.4,3.01347395]
[1761935050218,0.4659,3834.5,3834.4,3.01347395]
[1761935050535,0.9654,3834.5,3834.4,3.01347395]
[1761935053621,0.9654,3834.5,3834.4,0.405504]
[1761935053822,0.9654,3834.5,3834.4,3.01347395]
[1761935056150,0.9654,3834.5,3834.4,0.405504]
[1761935056456,0.9654,3834.5,3834.4,3.01347395]
[1761935056660,0.01,3834.7,3834.5,3.01340594]
[1761935056836,0.01,3834.7,3834.6,3.50091626]
[1761935057955,0.01,3834.7,3834.6,3.93633793]
[1761935058575,0.01,3834.7,3834.6,3.96241626]
[1761935058774,0.01,3834.7,3834.6,5.36209626]
[1761935058956,0.01,3834.7,3834.6,5.33601793]
[1761935059146,0.01,3834.7,3834.6,6.20363997]
[1761935059543,0.011,3834.7,3834.6,6.20363997]
[1761935061273,0.011,3834.7,3834.6,12.7659542]
[1761935063102,0.011,3834.7,3834.6,6.43771284]
[1761935063458,0.011,3834.7,3834.6,12.41313899]
[1761935065464,0.011,3834.7,3834.6,11.74963207]
[1761935067176,0.467,3834.7,3834.6,4.1119868]
[1761935067496,0.011,3834.7,3834.6,9.31943316]
[1761935067762,0.9498,3834.7,3834.6,9.31943316]
[1761935067911,0.9498,3834.7,3834.6,8.32525716]
[1761935069399,0.9498,3834.7,3834.6,3.01333793]
[1761935070225,0.467,3834.7,3834.6,3.01333793]
[1761935070519,0.467,3834.7,3833.9,7.96462818]
[1761935070520,0.9498,3834.7,3833.9,0.002]